bitfinex/quotes_SOLUSD_20251208
["timestamp","ask_amount","ask_price","bid_price","bid_amount"]
[1765179392570,0.76,135.96,135.94,8.80994492]
[1765179393347,0.1,135.96,135.94,8.80994492]
[1765179393753,0.1,135.96,135.95,10.76208719]
[1765179394158,0.1,135.96,135.95,18.11773264]
[1765179394779,0.1,135.96,135.95,15.49564545]
[1765179397304,0.1,135.96,135.95,16.89564545]
[1765179398087,0.1,135.96,135.95,19.51773264]
[1765179398489,0.1,135.96,135.95,20.15564545]
[1765179400690,0.1,135.96,135.95,22.77773264]
[1765179400890,0.1,135.96,135.95,39.08659664]
[1765179401679,0.1,135.96,135.95,36.46450945]
[1765179404008,0.1,135.96,135.95,39.08659664]
[1765179404475,0.1,135.96,135.95,31.58767756]
[1765179405085,0.1,135.97,135.96,8.80994492]
[1765179405293,1e-08,135.98,135.96,11.43203211]
[1765179405490,1e-08,135.98,135.97,19.57203211]
[1765179405791,1e-08,135.98,135.97,26.92659561]
[1765179407001,1e-08,135.98,135.95,23.04911364]
[1765179407002,0.66000001,135.98,135.95,4.66]
[1765179407178,3.2820872,135.98,135.95,12.01525656]
[1765179407594,0.66,135.97,135.95,28.32412056]
[1765179408520,0.66,135.97,135.95,26.92412056]
[1765179410190,0.66,135.97,135.95,3.26]
[1765179410392,0.66,135.97,135.96,0.5]
[1765179412180,0.67000001,135.98,135.96,15.99510444]
[1765179412385,0.67,135.97,135.96,27.42713655]
[1765179412816,0.67,135.97,135.96,24.80504936]
[1765179414105,1e-08,135.98,135.97,8.80994492]
[1765179414311,1e-08,135.98,135.97,11.43203211]
[1765179415289,0.67000001,135.98,135.97,8.80994492]
[1765179416314,0.67000001,135.98,135.97,16.16450842]
[1765179416615,0.67000001,135.98,135.97,24.30450842]
[1765179416801,0.67000001,135.98,135.97,27.24839066]
[1765179419011,0.67000001,135.98,135.97,19.10839066]
[1765179419201,0.67000001,135.98,135.97,27.24839066]
[1765179421027,0.67000001,135.98,135.97,2.22388224]
[1765179421028,3.2920872,135.98,135.97,2.22388224]
[1765179421321,3.2920872,135.98,135.96,0.5]
[1765179421509,0.68,135.97,135.96,7.85510444]
[1765179421714,0.68,135.97,135.96,11.14719164]
[1765179423723,0.68,135.97,135.96,3.7920872]
[1765179423908,0.68,135.97,135.96,11.14719164]
[1765179424422,0.68,135.97,135.96,3.7920872]
[1765179424622,0.68,135.97,135.96,0.5]
[1765179425121,0.68,135.97,135.94,8.80994492]
[1765179425122,10.65665069,135.97,135.94,8.80994492]
[1765179425329,2.62208719,135.96,135.93,7.35619386]
[1765179425626,0.68,135.96,135.93,15.49619386]
[1765179425825,0.68,135.95,135.93,15.49619386]
[1765179426195,0.68,135.95,135.94,7.35618655]
[1765179427616,104.80000001,135.98,135.94,16.16613147]
[1765179427802,0.68,135.97,135.95,8.80994492]
[1765179429218,0.68,135.97,135.95,16.16530774]
[1765179433397,4.77205731,135.97,135.94,15.49577174]
[1765179433601,4.77205731,135.97,135.94,8.14]
[1765179433602,12.12676194,135.97,135.94,8.14]
[1765179433802,0.68,135.96,135.94,8.14]
[1765179434036,0.68,135.96,135.94,15.49612542]
[1765179434334,0.68,135.96,135.92,8.80994492]
[1765179434335,4.09205731,135.95,135.92,8.80994492]
[1765179434534,4.09205731,135.94,135.92,8.80994492]
[1765179435031,4.09205731,135.94,135.92,16.1672139]
[1765179435032,0.68,135.93,135.92,16.1672139]
[1765179435231,3.18,135.93,135.92,16.1672139]
[1765179436410,4.77205731,135.93,135.9,8.12]
[1765179436711,0.68,135.92,135.9,8.12]
[1765179437029,0.68,135.92,135.9,15.4781822]
[1765179437800,4.09205731,135.91,135.88,8.80994492]
[1765179438018,4.09205731,135.91,135.88,16.92994492]
[1765179438241,4.77205731,135.9,135.88,8.12]
[1765179438411,4.09205731,135.89,135.86,8.80994492]
[1765179438607,4.77205731,135.89,135.86,8.80994492]
[1765179438830,0.68,135.88,135.86,16.17043375]
[1765179439518,4.09205731,135.87,135.85,8.12]
[1765179439707,4.77205731,135.88,135.85,8.12]
[1765179439905,4.77205731,135.9,135.86,8.80994492]
[1765179440106,3.18,135.89,135.86,16.17027437]
[1765179440536,0.68,135.88,135.86,16.17027437]
[1765179440705,4.77205731,135.88,135.85,15.48105741]
[1765179440905,0.68,135.88,135.85,15.48105741]
[1765179441135,0.71,135.87,135.85,15.48105741]
[1765179441339,3.21,135.87,135.85,15.48105741]
[1765179442374,2.5,135.87,135.86,13.61200223]
[1765179442645,0.71,135.9,135.86,13.61200223]
[1765179442646,2.5,135.89,135.86,29.92086623]
[1765179442852,2.5,135.89,135.87,12.21205731]
[1765179443032,3.21,135.89,135.87,12.21205731]
[1765179443423,2.5,135.89,135.87,12.92205731]
[1765179443625,11.44897754,135.93,135.88,13.61200223]
[1765179443844,0.71,135.92,135.89,8.12]
[1765179444352,7.35781031,135.91,135.87,15.47985081]
[1765179444543,4.80205731,135.92,135.87,15.47985081]
[1765179444843,0.71,135.91,135.88,8.80994492]
[1765179445022,0.71,135.91,135.88,12.90200223]
[1765179445642,0.71,135.93,135.9,8.80994492]
[1765179445814,0.71,135.94,135.91,4.09205731]
[1765179446240,0.71,135.94,135.91,12.21205731]
[1765179446539,0.71,135.94,135.91,19.56969114]
[1765179447136,7.35510444,135.96,135.92,12.90200223]
[1765179447343,0.71,135.95,135.93,4.09205731]
[1765179447517,0.71,135.95,135.92,12.90200223]
[1765179448342,0.71,135.95,135.93,7.35672772]
[1765179448840,0.71,135.95,135.93,15.47672772]
[1765179452142,4.80205731,135.95,135.93,8.12]
[1765179452436,4.80205731,135.95,135.91,8.12]
[1765179452644,0.71,135.94,135.91,8.12]
[1765179453649,0.71,135.94,135.91,15.47764725]
[1765179454628,12.15831762,135.94,135.91,8.12]
[1765179455241,0.71,135.93,135.91,8.12]
[1765179456748,2.5,135.92,135.91,8.12]
[1765179460451,2.5,135.92,135.91,15.47781031]
[1765179460749,0.71,135.96,135.92,8.80994492]
[1765179460950,1e-08,135.98,135.93,8.12]
[1765179461165,0.71000001,135.98,135.94,8.80994492]
[1765179461544,0.71000001,135.98,135.94,12.90200223]
[1765179461925,0.71000001,135.98,135.94,8.80994492]
[1765179462130,12.15609078,135.98,135.94,16.16583877]
[1765179462541,0.71,135.97,135.94,16.16583877]
[1765179468376,8.06460997,135.97,135.93,15.47652392]
[1765179468882,0.71,135.96,135.93,15.47652392]
[1765179469481,0.71,135.96,135.93,7.35652392]
[1765179469660,6.59205731,135.95,135.91,7.35739765]
[1765179469983,2.5,135.94,135.91,7.35739765]
[1765179470285,3.21,135.94,135.91,7.35739765]
[1765179470459,0.71,135.93,135.91,7.35739765]
[1765179470767,3.21,135.94,135.91,7.35739765]
[1765179471196,2.5,135.94,135.91,7.35739765]
[1765179471485,3.18,135.94,135.92,7.35709403]
[1765179472262,2.5,135.94,135.93,8.80994492]
[1765179472452,2.5,135.94,135.93,12.90200223]
[1765179473065,2.5,135.94,135.93,13.62200223]
[1765179473683,2.5,135.94,135.93,20.97872995]
[1765179473854,2.5,135.94,135.93,20.25872995]
[1765179474674,2.5,135.94,135.93,16.16667264]
[1765179477684,2.5,135.94,135.93,24.28667264]
[1765179480389,3.21,135.94,135.93,24.28667264]
[1765179480575,3.21,135.94,135.91,7.35743537]
[1765179480894,0.71,135.93,135.91,15.47761086]
[1765179486298,0.71,135.93,135.91,8.12]
[1765179486480,2.5,135.92,135.91,8.12]
[1765179486675,0.71,135.93,135.9,16.16811508]
[1765179486872,2.5,135.91,135.9,8.12]
[1765179487385,3.21,135.91,135.9,8.12]
[1765179487810,4.80205731,135.91,135.86,9.99498814]
[1765179487989,4.80205731,135.91,135.84,15.5663239]
[1765179487990,4.09205731,135.87,135.82,25.96183225]
[1765179488301,4.09205731,135.87,135.83,8.80994492]
[1765179488476,4.09205731,135.88,135.83,27.87442831]
[1765179488683,0.71,135.86,135.85,7.3607417]
[1765179490902,7.35857588,135.9,135.85,7.3607417]
[1765179491089,0.71,135.92,135.88,8.80994492]
[1765179491271,0.71,135.92,135.88,19.55275049]
[1765179491586,0.71,135.92,135.88,20.21275049]
[1765179491993,0.71,135.92,135.89,2.62280557]
[1765179493005,0.71,135.92,135.9,7.35835172]
[1765179495704,0.71,135.92,135.9,9.98115729]
[1765179495996,2.5,135.93,135.9,9.98115729]
[1765179496213,2.5,135.93,135.91,2.62280557]
[1765179496214,3.21,135.93,135.91,2.62280557]
[1765179496803,3.21,135.93,135.9,9.98115729]
[1765179498146,0.71,135.92,135.9,9.98115729]
[1765179498924,2.5,135.93,135.91,19.55275049]
[1765179499634,3.21,135.93,135.91,16.92994492]
[1765179499937,3.21,135.93,135.91,19.55275049]
[1765179501011,3.21,135.93,135.92,7.35726898]
[1765179501012,2.5,135.93,135.92,7.35726898]
[1765179501329,112.15528981,135.96,135.92,7.35726898]
[1765179501637,0.7,135.93,135.92,7.35726898]
[1765179501836,112.15528981,135.96,135.92,7.35726898]
[1765179502133,0.7,135.95,135.92,7.35726898]
[1765179502344,104.8,135.96,135.93,2.62280557]
[1765179502519,105.5,135.96,135.93,2.62280557]
[1765179503445,105.5,135.96,135.93,9.97922548]
[1765179504631,0.7,135.95,135.93,9.97922548]
[1765179505421,2.5,135.94,135.93,9.97922548]
[1765179506442,3.2,135.94,135.93,9.97922548]
[1765179507146,2.5,135.94,135.93,9.97922548]
[1765179508032,2.5,135.94,135.92,9.98007455]
[1765179508238,3.2,135.94,135.92,9.98007455]
[1765179510141,2.5,135.93,135.92,18.79001947]
[1765179511029,3.2,135.93,135.92,7.35726898]
[1765179511339,3.2,135.93,135.92,16.1672139]
[1765179511534,9.97845102,135.95,135.89,22.08724461]
[1765179511846,2.62280557,135.9,135.84,3.29280557]
[1765179512143,2.62280557,135.9,135.85,25.11880892]
[1765179512330,0.7,135.89,135.85,8.80994492]
[1765179512533,5.82280557,135.89,135.85,8.80994492]
[1765179512741,0.7,135.88,135.85,8.80994492]
[1765179512938,3.32280557,135.88,135.85,8.80994492]
[1765179513551,5.12280557,135.89,135.85,8.80994492]
[1765179513739,5.12280557,135.89,135.86,7.36051818]
[1765179513740,0.7,135.88,135.86,7.36051818]
[1765179518035,9.85892449,135.89,135.86,7.36051818]
[1765179518338,10.55892449,135.89,135.86,7.36051818]
[1765179518555,0.7,135.88,135.86,7.36051818]
[1765179521548,0.7,135.88,135.85,16.170876]
[1765179522037,2.5,135.87,135.85,16.170876]
[1765179522242,2.4,135.89,135.87,8.80994492]
[1765179522438,3.1,135.93,135.88,10.74280557]
[1765179522638,3.1,135.93,135.9,11.43275049]
[1765179523159,0.7,135.93,135.91,9.98052348]
[1765179523350,0.7,135.94,135.92,2.62280557]
[1765179523857,0.7,135.94,135.91,9.98052348]
[1765179525362,5.02280557,135.97,135.92,11.43275049]
[1765179525569,0.7,135.96,135.93,2.62280557]
[1765179526151,0.7,135.96,135.94,8.80994492]
[1765179526465,2.4,135.97,135.95,9.97834276]
[1765179526466,3.1,135.97,135.95,9.97834276]
[1765179526648,3.1,135.97,135.95,7.35553719]
[1765179527542,3.1,135.97,135.94,18.7887538]
[1765179527742,0.7,135.96,135.94,16.16594823]
[1765179529669,0.7,135.96,135.93,16.308864]
[1765179529852,8.05511651,135.96,135.92,11.43275049]
[1765179530053,8.05511651,135.96,135.91,25.45625324]
[1765179530054,10.67792208,135.96,135.91,25.45625324]
[1765179530368,0.7,135.95,135.91,18.10049011]
[1765179530742,8.05578649,135.95,135.91,18.10049011]
[1765179531149,0.69,135.94,135.91,18.10049011]
[1765179531567,0.69,135.94,135.91,15.47768454]
[1765179531754,0.69,135.94,135.91,18.10049011]
[1765179533774,2.4,135.93,135.91,9.98049011]
[1765179533957,2.4,135.92,135.91,18.79043503]
[1765179536288,3.09,135.92,135.9,7.35831432]
[1765179538177,2.4,135.92,135.9,7.35831432]
[1765179538382,0.66,135.91,135.89,24.28868236]
[1765179540990,2.4,135.92,135.89,24.28868236]
[1765179541167,3.06,135.92,135.89,26.91148793]
[1765179542285,0.66,135.91,135.89,24.28868236]
[1765179542702,3.06,135.92,135.89,24.28868236]
[1765179544498,9.75741819,135.92,135.89,8.12]
[1765179544807,0.66,135.91,135.88,23.66809148]
[1765179545008,2.4,135.9,135.88,23.66809148]
[1765179545382,3.06,135.9,135.88,23.66809148]
[1765179545886,3.06,135.9,135.89,7.35889322]
[1765179546672,3.06,135.9,135.88,16.308864]
[1765179546879,3.06,135.89,135.87,24.28978862]
[1765179549091,2.4,135.89,135.87,24.28978862]
[1765179549481,3.06,135.89,135.86,23.66919601]
[1765179550182,3.06,135.89,135.86,26.29200158]
[1765179550382,2.4,135.89,135.88,11.43275049]
[1765179550786,2.4,135.89,135.88,12.90475848]
[1765179550989,2.4,135.89,135.88,8.80994492]
[1765179552005,2.4,135.89,135.88,16.16937971]
[1765179555412,2.4,135.89,135.86,16.17014197]
[1765179555413,3.06,135.89,135.86,16.17014197]
[1765179555621,0.66,135.88,135.86,16.17014197]
[1765179556724,0.66,135.88,135.85,19.32297404]
[1765179557605,0.66,135.88,135.85,3.84233387]
[1765179557606,14.51437665,135.88,135.85,3.84233387]
[1765179557809,4.09481356,135.87,135.84,16.17139141]
[1765179558013,4.75481356,135.87,135.84,16.17139141]
[1765179558342,0.66,135.86,135.84,16.17139141]
[1765179559823,0.66,135.87,135.84,16.17139141]
[1765179563635,2.4,135.86,135.84,16.17139141]
[1765179564028,0.68,135.85,135.84,16.17139141]
[1765179564238,2.4,135.86,135.84,16.17139141]
[1765179564417,3.08,135.86,135.84,16.17139141]
[1765179569741,2.4,135.85,135.84,16.17139141]
[1765179572135,2.4,135.84,135.83,8.12]
[1765179572343,2.4,135.84,135.82,9.00994492]
[1765179572344,3.08,135.84,135.82,9.00994492]
[1765179572539,3.08,135.84,135.82,0.2]
[1765179572757,2.4,135.84,135.82,7.56266338]
[1765179572941,0.68,135.83,135.82,7.56266338]
[1765179573333,0.68,135.83,135.82,0.2]
[1765179582551,4.77481356,135.83,135.82,0.2]
[1765179583467,0.68,135.83,135.82,0.2]
[1765179584957,0.68,135.88,135.83,8.80994492]
[1765179585263,0.68,135.87,135.84,4.09481356]
[1765179586163,0.68,135.87,135.84,11.45630859]
[1765179586465,8.03899501,135.89,135.85,13.58475848]
[1765179586651,0.68,135.88,135.86,4.09481356]
[1765179586851,0.68,135.88,135.85,13.58475848]
[1765179587366,0.68,135.88,135.85,20.94546359]
[1765179587961,0.68,135.88,135.85,20.26546359]
[1765179588160,0.68,135.88,135.86,1.4]
[1765179588565,0.68,135.88,135.85,16.17065003]
[1765179590078,3.08,135.88,135.85,16.17065003]
[1765179593172,0.72,135.87,135.86,0.5]
[1765179594973,7.35912913,135.89,135.86,0.5]
[1765179595152,0.72,135.88,135.86,0.5]
[1765179596780,0.72,135.88,135.86,7.8603766]
[1765179601080,12.21481356,135.87,135.86,0.5]
[1765179601469,7.36051818,135.86,135.82,0.2]
[1765179601673,4.09481356,135.83,135.82,0.2]
[1765179602087,4.80481356,135.83,135.82,0.2]
[1765179603198,12.16695741,135.83,135.82,0.2]
[1765179608298,2.2,135.81,135.79,0.2]
[1765179608489,1.9,135.8,135.79,0.2]
[1765179608682,2.61,135.8,135.79,0.2]
[1765179611375,1.9,135.8,135.79,0.2]
[1765179611695,2.61,135.8,135.79,0.2]
[1765179612092,12.59921419,135.8,135.79,0.2]
[1765179612292,115.49921419,135.8,135.79,0.2]
[1765179624500,112.87377025,135.8,135.79,0.2]
[1765179624816,115.49921419,135.8,135.79,0.2]
[1765179627026,37.80743469,135.85,135.79,0.2]
[1765179627027,0.71,135.89,135.8,25.11880892]
[1765179627185,0.71,135.9,135.86,2.62544394]
[1765179627923,15.47835172,135.9,135.87,3.33544394]
[1765179628301,16.18835172,135.9,135.87,0.71]
[1765179630510,16.18835172,135.9,135.87,3.33544394]
[1765179630911,16.18835172,135.9,135.87,0.71]
[1765179632213,1.9,135.89,135.87,0.71]
[1765179637827,1.9,135.88,135.87,0.71]
[1765179639530,9.2595121,135.88,135.83,8.80994492]
[1765179639706,1.9,135.87,135.84,10.69685572]
[1765179640112,1.9,135.87,135.85,0.71]
[1765179640516,2.61,135.87,135.85,0.71]
[1765179640723,1.9,135.87,135.85,0.71]
[1765179641310,1.9,135.87,135.85,3.33544394]
[1765179641512,1.9,135.87,135.86,0.71]
[1765179641833,120.2795121,135.88,135.86,0.71]
[1765179642040,120.9895121,135.88,135.86,0.71]
[1765179642221,120.9895121,135.88,135.84,9.98685572]
[1765179642424,120.9895121,135.88,135.85,0.71]
[1765179643142,0.71,135.87,135.84,0.71]
[1765179643510,8.83,135.87,135.84,0.71]
[1765179644921,11.45544394,135.87,135.84,0.71]
[1765179646334,2.61,135.86,135.83,8.07191785]
[1765179646526,1.9,135.85,135.83,8.07191785]
[1765179646731,1.9,135.85,135.83,0.71]
[1765179647244,1.9,135.85,135.82,7.36244671]
[1765179647444,1.9,135.85,135.84,0.71]
[1765179647618,1.9,135.85,135.83,0.71]
[1765179649347,2.61,135.85,135.82,7.36244671]
[1765179649549,1.9,135.85,135.83,0.71]
[1765179649738,1.9,135.84,135.83,0.71]
[1765179654132,1.9,135.84,135.81,24.95302295]
[1765179654335,1.9,135.84,135.82,0.66]
[1765179655659,1.9,135.83,135.82,0.66]
[1765179656151,5.21544394,135.83,135.79,8.22401572]
[1765179656357,0.69,135.82,135.79,0.2]
[1765179656582,3.31544394,135.82,135.79,0.2]
[1765179656958,0.69,135.81,135.79,0.2]
[1765179658470,2.62544394,135.82,135.79,8.22423053]
[1765179658672,0.69,135.82,135.79,8.22423053]
[1765179659765,11.88777334,135.83,135.8,0.66]
[1765179659992,1.9,135.83,135.8,8.0237207]
[1765179660193,1.9,135.83,135.81,2.62544394]
[1765179660358,1.9,135.83,135.81,3.28544394]
[1765179660553,1.9,135.83,135.82,0.66]
[1765179661092,104.8,135.88,135.82,12.09538886]
[1765179661093,2.59,135.87,135.82,12.09538886]
[1765179661252,1.9,135.86,135.82,9.46994492]
[1765179661457,2.59,135.86,135.83,0.66]
[1765179661657,2.59,135.86,135.82,9.46994492]
[1765179661892,0.69,135.85,135.82,9.46994492]
[1765179662392,0.69,135.85,135.82,16.8326195]
[1765179663983,0.69,135.85,135.82,0.66]
[1765179663984,8.05119098,135.85,135.82,0.66]
[1765179664596,2.61,135.84,135.81,7.36300197]
[1765179664898,1.9,135.83,135.81,8.07300197]
[1765179666593,1.9,135.83,135.81,0.71]
[1765179666801,1.9,135.83,135.82,0.71]
[1765179666997,1.9,135.83,135.81,0.71]
[1765179668096,0.71,135.82,135.79,16.39410416]
[1765179668282,0.71,135.82,135.79,8.27410416]
[1765179668483,0.71,135.82,135.79,7.56410416]
[1765179668681,0.71,135.82,135.8,0.71]
[1765179668869,12.59760217,135.83,135.8,0.71]
[1765179669487,9.97215823,135.83,135.8,0.71]
[1765179670507,1.9,135.82,135.8,0.71]
[1765179670804,1.9,135.82,135.8,8.07363839]
[1765179673715,2.61,135.82,135.8,8.07363839]
[1765179674409,1.9,135.82,135.8,8.07363839]
[1765179675185,1.9,135.81,135.8,8.07363839]
[1765179675519,0.71,135.83,135.8,8.07363839]
[1765179676313,0.71,135.83,135.8,7.36363839]
[1765179676486,12.17233291,135.83,135.79,0.2]
[1765179676991,0.71,135.82,135.79,0.2]
[1765179677197,4.81016742,135.82,135.79,0.2]
[1765179677400,0.71,135.82,135.79,0.2]
[1765179677602,4.10016742,135.8,135.79,0.2]
[1765179677809,11.46393767,135.8,135.79,0.2]
[1765179678014,12.17393767,135.8,135.79,0.2]
[1765179682113,131.32800801,135.82,135.79,0.2]
[1765179682114,104.8,135.82,135.79,5.02016742]
[1765179682314,104.8,135.82,135.8,4.82016742]
[1765179682629,0.71,135.84,135.8,4.82016742]
[1765179682929,0.71,135.84,135.8,4.10016742]
[1765179683117,0.71,135.84,135.81,0.72]
[1765179683317,16.19195622,135.84,135.81,4.82016742]
[1765179683518,16.19195622,135.84,135.8,4.10016742]
[1765179683834,0.71,135.83,135.8,4.82016742]
[1765179688339,2.61,135.83,135.8,4.82016742]
[1765179694045,9.9722119,135.83,135.8,0.72]
[1765179694248,1.9,135.82,135.8,0.72]
[1765179695147,1.9,135.82,135.8,8.08369651]
[1765179697541,0.71,135.81,135.79,0.2]
[1765179697842,1.9,135.8,135.79,0.2]
[1765179698827,2.61,135.8,135.79,0.2]
[1765179699830,9.97377025,135.8,135.79,0.2]
[1765179700149,12.17393767,135.8,135.79,0.2]
[1765179703723,16.27410509,135.8,135.79,0.2]
[1765179705343,34.68353071,135.8,135.77,0.2]
[1765179705526,4.10016742,135.78,135.77,0.2]
[1765179705845,12.22016742,135.78,135.77,0.2]
[1765179706143,12.93016742,135.78,135.77,0.2]
[1765179706944,20.29502233,135.78,135.77,0.2]
[1765179707963,12.17502233,135.78,135.77,0.2]
[1765179708164,20.29502233,135.78,135.77,0.2]
[1765179712843,12.17502233,135.78,135.77,0.2]
[1765179713071,19.58502233,135.78,135.77,0.2]
[1765179713369,20.27502233,135.78,135.77,0.2]
[1765179714169,12.15502233,135.78,135.77,0.2]
[1765179714366,120.28453069,135.79,135.77,0.9]
[1765179714876,120.97453069,135.79,135.77,0.2]
[1765179715377,125.07469811,135.79,135.77,0.2]
[1765179716604,4.79016742,135.78,135.77,0.2]
[1765179716792,4.10016742,135.78,135.77,0.2]
[1765179717084,125.07469811,135.79,135.77,0.2]
[1765179717682,124.38469811,135.79,135.77,0.2]
[1765179717870,4.79016742,135.78,135.77,0.2]
[1765179718874,12.15502233,135.78,135.77,0.2]
[1765179719183,12.18502233,135.78,135.77,0.2]
[1765179719379,15.48485491,135.78,135.77,0.2]
[1765179720583,8.12,135.78,135.77,0.2]
[1765179720989,20.30502233,135.78,135.77,0.2]
[1765179723792,19.58502233,135.78,135.77,0.2]
[1765179724106,20.30502233,135.78,135.77,0.2]
[1765179726906,1.7,135.76,135.75,0.2]
[1765179727108,13.92016742,135.76,135.75,0.2]
[1765179728406,21.28610731,135.76,135.75,0.2]
[1765179729104,22.00610731,135.76,135.75,0.2]
[1765179732691,20.53354316,135.76,135.75,0.2]
[1765179732917,18.83354316,135.76,135.75,0.2]
[1765179734015,37.24839289,135.76,135.73,0.2]
[1765179734317,18.93646727,135.74,135.73,0.2]
[1765179734508,27.05646727,135.74,135.73,0.2]
[1765179734822,30.40407054,135.74,135.73,0.2]
[1765179735211,27.77646727,135.74,135.73,0.2]
[1765179735711,37.77109573,135.74,135.73,0.2]
[1765179735909,37.77109573,135.74,135.72,0.2]
[1765179736232,13.85801635,135.73,135.72,0.2]
[1765179738230,21.22558431,135.73,135.72,0.2]
[1765179741426,21.22558431,135.73,135.69,0.2]
[1765179741427,1.6,135.7,135.69,0.2]
[1765179741611,10.74760327,135.7,135.69,0.2]
[1765179742126,10.74760327,135.7,135.69,0.85]
[1765179742508,8.12,135.7,135.69,0.85]
[1765179742940,8.12,135.7,135.69,0.2]
[1765179744319,11.44760327,135.7,135.69,0.2]
[1765179744812,10.74760327,135.7,135.69,0.2]
[1765179746224,18.11680002,135.7,135.69,0.2]
[1765179747734,122.91680002,135.7,135.69,0.2]
[1765179748437,123.61680002,135.7,135.69,0.2]
[1765179748733,123.61680002,135.7,135.67,0.1000855]
[1765179749028,2.62760327,135.68,135.67,0.1000855]
[1765179749242,18.11788628,135.68,135.67,0.1000855]
[1765179750343,18.81788628,135.68,135.67,0.1000855]
[1765179751934,15.49028301,135.68,135.67,0.1000855]
[1765179752123,18.11788628,135.68,135.67,0.7500855]
[1765179752320,18.11788628,135.68,135.67,0.1000855]
[1765179755227,18.81788628,135.68,135.67,0.1000855]
[1765179755730,18.11788628,135.68,135.67,0.7500855]
[1765179756115,18.11788628,135.68,135.67,0.1000855]
[1765179758443,18.11788628,135.68,135.67,0.7500855]
[1765179758623,8.12,135.68,135.67,0.7500855]
[1765179758822,8.12,135.68,135.67,0.1000855]
[1765179759150,10.74760327,135.68,135.67,0.1000855]
[1765179759745,11.44760327,135.68,135.67,0.1000855]
[1765179760639,18.11788628,135.68,135.67,0.1000855]
[1765179760840,9.99788628,135.68,135.67,0.1000855]
[1765179761041,18.11788628,135.68,135.67,0.1000855]
[1765179761261,15.49028301,135.68,135.67,0.7500855]
[1765179761459,18.11788628,135.68,135.67,0.1000855]
[1765179762756,105.5,135.69,135.67,0.7500855]
[1765179762757,120.28987481,135.69,135.67,0.7500855]
[1765179765573,1.6,135.68,135.67,0.7500855]
[1765179771192,112.92,135.69,135.67,0.7500855]
[1765179773596,104.8,135.69,135.67,8.1207717]
[1765179773798,104.8,135.69,135.68,0.71]
[1765179785915,104.8,135.69,135.67,0.7900855]
[1765179786516,1.6,135.68,135.67,0.7900855]
[1765179792301,104.8,135.69,135.67,0.7900855]
[1765179794125,104.8,135.69,135.67,8.16089125]
[1765179794428,104.8,135.69,135.67,12.26948629]
[1765179794635,104.8,135.69,135.67,7.47089125]
[1765179794812,4.10859504,135.68,135.67,0.1000855]
[1765179795002,116.94841936,135.69,135.67,0.1000855]
[1765179795202,4.10859504,135.68,135.67,0.1000855]
[1765179796339,12.14887805,135.68,135.67,0.1000855]
[1765179798716,20.26887805,135.68,135.67,0.1000855]
[1765179801140,16.16028301,135.68,135.67,0.1000855]
[1765179801439,20.26887805,135.68,135.67,0.1000855]
[1765179802234,1.2999145,135.66,135.65,0.2]
[1765179802436,4.10859504,135.66,135.65,0.2]
[1765179802646,4.78859504,135.66,135.65,0.2]
[1765179803140,12.15996464,135.66,135.65,0.2]
[1765179804640,20.27996464,135.66,135.65,0.2]
[1765179806141,24.38855968,135.66,135.65,0.2]
[1765179806330,20.27996464,135.66,135.65,0.2]
[1765179806536,8.0513696,135.66,135.65,0.2]
[1765179806736,12.15996464,135.66,135.65,0.2]
[1765179807043,20.27996464,135.66,135.65,0.2]
[1765179808736,19.59996464,135.66,135.65,0.2]
[1765179809056,20.27996464,135.66,135.65,0.2]
[1765179809349,12.15996464,135.66,135.65,0.2]
[1765179809649,20.27996464,135.66,135.65,0.2]